fUSD/lending_fUSD_20260218
["ID","MTS","AMOUNT","RATE_DAILY","PERIOD"]
[405951822,1771442115018,-10000.01,6.53e-05,2]
[405951823,1771442115118,-10000.01,6.53e-05,2]
[405951824,1771442115229,-10000.01,6.53e-05,2]
[405951825,1771442115355,-10000.01,6.53e-05,2]
[405951826,1771442115481,-10000.01,6.53e-05,2]
[405951827,1771442120791,-150.0,6.43e-05,3]
[405951828,1771442120821,-500.09851978,6.529e-05,2]
[405951829,1771442120853,-500.0,6.529e-05,2]
[405951830,1771442120885,-500.0,6.529e-05,2]
[405951831,1771442120921,-500.0,6.529e-05,2]
[405951832,1771442120955,-500.0,6.529e-05,2]
[405951833,1771442120991,-194.89516446,6.529e-05,2]
[405951834,1771442121024,-500.0,6.529e-05,2]
[405951835,1771442121056,-500.0,6.529e-05,2]
[405951836,1771442121089,-500.0,6.529e-05,2]
[405951837,1771442121120,-500.0,6.529e-05,2]
[405951838,1771442121355,-310.02263152,6.53e-05,2]
[405951839,1771442123779,-151.0,6.527e-05,2]
[405951840,1771442123815,-9698.01,6.53e-05,2]
[405951841,1771442130430,-500.0,6.529e-05,2]
[405951842,1771442130461,-500.0,6.529e-05,2]
[405951843,1771442130493,-500.0,6.529e-05,2]
[405951844,1771442130525,-500.0,6.529e-05,2]
[405951845,1771442130555,-500.0,6.529e-05,2]
[405951846,1771442130586,-500.0,6.529e-05,2]
[405951847,1771442130621,-500.0,6.529e-05,2]
[405951848,1771442130652,-500.0,6.529e-05,2]
[405951849,1771442130684,-500.0,6.529e-05,2]
[405951850,1771442130717,-500.0,6.529e-05,2]
[405951851,1771442130863,-0.01,6.529e-05,2]
[405951852,1771442133058,-499.99,6.529e-05,2]
[405951853,1771442133088,-318.30623099,6.529e-05,2]
[405951854,1771442133121,-500.0,6.529e-05,2]
[405951855,1771442133151,-500.0,6.529e-05,2]
[405951856,1771442133180,-500.0,6.529e-05,2]
[405951857,1771442133210,-500.0,6.529e-05,2]
[405951858,1771442133240,-500.0,6.529e-05,2]
[405951859,1771442133270,-500.0,6.529e-05,2]
[405951860,1771442133300,-500.0,6.529e-05,2]
[405951861,1771442133330,-500.0,6.529e-05,2]
[405951862,1771442133499,-500.0,6.529e-05,2]
[405951863,1771442133531,-500.0,6.529e-05,2]
[405951864,1771442133561,-500.0,6.529e-05,2]
[405951865,1771442133588,-1297.59034333,6.529e-05,2]
[405951866,1771442133692,-363.41753802,6.53e-05,2]
[405951867,1771442133705,-4404.82931334,6.53e-05,2]
[405951868,1771442133722,-10000.01,6.53e-05,2]
[405951869,1771442138583,-254.43,6.5e-05,2]
[405951870,1771442138621,-9491.15,6.53e-05,2]
[405951871,1771442140043,-10000.01,6.53e-05,2]
[405951872,1771442140149,-10000.01,6.53e-05,2]
[405951873,1771442140256,-10000.01,6.53e-05,2]
[405951874,1771442142999,-10000.01,6.53e-05,2]
[405951875,1771442143139,-10000.01,6.53e-05,2]
[405951876,1771442143431,-10000.01,6.53e-05,2]
[405951877,1771442145971,2524.55,5.362e-05,2]
[405951878,1771442146200,2475.46,5.412e-05,2]
[405951879,1771442146220,49.09,5.412e-05,2]
[405951880,1771442146247,-10000.01,6.53e-05,2]
[405951881,1771442146428,2524.55,5.462e-05,2]
[405951882,1771442146460,-10000.01,6.53e-05,2]
[405951883,1771442146658,2426.37,5.511e-05,2]
[405951884,1771442146680,98.18,5.511e-05,2]
[405951885,1771442146921,2524.55,5.561e-05,2]
[405951886,1771442147209,2377.28,5.611e-05,2]
[405951887,1771442147230,147.27,5.611e-05,2]
[405951888,1771442147626,2524.55,5.661e-05,2]
[405951889,1771442147853,2328.19,5.711e-05,2]
[405951890,1771442147876,196.36,5.711e-05,2]
[405951891,1771442148072,2524.55,5.761e-05,2]
[405951892,1771442148307,2279.1,5.81e-05,2]
[405951893,1771442148328,245.45,5.81e-05,2]
[405951894,1771442148511,2524.55,5.86e-05,2]
[405951895,1771442148615,500.0,6.427e-05,2]
[405951896,1771442148862,1730.01,5.91e-05,2]
[405951897,1771442148889,794.54,5.91e-05,2]
[405951898,1771442149113,2524.55,5.96e-05,2]
[405951899,1771442149410,2524.55,6.01e-05,2]
[405951900,1771442149615,2475.46,6.059e-05,2]
[405951901,1771442153048,-49.09,6.059e-05,2]
[405951902,1771442153076,-2524.55,6.109e-05,2]
[405951903,1771442153104,-2328.18,6.159e-05,2]
[405951904,1771442153151,-196.37,6.159e-05,2]
[405951905,1771442153183,-2524.55,6.209e-05,2]
[405951906,1771442153211,-2426.36,6.259e-05,2]
[405951907,1771442153245,-98.19,6.259e-05,2]
[405951908,1771442153275,-2524.55,6.308e-05,2]
[405951909,1771442153308,-4950.91,6.53e-05,2]
[405951910,1771442153384,-10000.01,6.53e-05,2]
[405951911,1771442153493,-10000.01,6.53e-05,2]
[405951912,1771442156141,-10000.01,6.53e-05,2]
[405951913,1771442156254,-10000.01,6.53e-05,2]
[405951914,1771442185960,151.0,6.527e-05,2]
[405951915,1771442225568,7226.0,6.493e-05,2]
[405951916,1771442225603,2623.01,6.493e-05,2]
[405951917,1771442225626,10000.01,6.493e-05,2]
[405951918,1771442225647,10000.01,6.493e-05,2]
[405951919,1771442225668,10000.01,6.493e-05,2]
[405951920,1771442225689,3290.96,6.493e-05,2]
[405951921,1771442289202,413.0,6.493e-05,3]
[405951922,1771442296185,150.0,6.493e-05,3]
[405951923,1771442307807,151.0,6.527e-05,2]
[405951924,1771442311928,500.0,6.427e-05,2]
[405951925,1771442322549,5495.05,6.52e-05,2]
[405951926,1771442322578,4559.62110386,6.52e-05,2]
[405951927,1771442346529,400.0,6.52e-05,3]
[405951928,1771442406459,160.0,6.52e-05,3]
[405951929,1771442407386,388.0,6.52e-05,3]
[405951930,1771442409341,-300.0,6.528e-05,2]
[405951931,1771442409367,-423.0,6.528e-05,2]
[405951932,1771442409394,-1200.0,6.528e-05,2]
[405951933,1771442409420,-300.0,6.528e-05,2]
[405951934,1771442409446,-300.0,6.528e-05,2]
[405951935,1771442409474,-207.0,6.528e-05,2]
[405951936,1771442433765,613.66,6.278e-05,2]
[405951937,1771442446470,500.0,6.427e-05,2]
[405951938,1771442467968,376.0,6.52e-05,3]
[405951939,1771442468963,300.0,6.528e-05,2]
[405951940,1771442475756,2750.35,6.288e-05,2]
[405951941,1771442475779,665.93,6.288e-05,2]
[405951942,1771442483834,158.87,6.5e-05,2]
[405951943,1771442492770,1720.14982419,6.528e-05,2]
[405951944,1771442492803,1502.30056927,6.528e-05,2]
[405951945,1771442492832,3190.11042138,6.528e-05,2]
[405951946,1771442521430,300.0,6.528e-05,2]
[405951947,1771442531169,365.0,6.52e-05,3]
[405951948,1771442581252,300.0,6.528e-05,2]
[405951949,1771442591394,362.0,6.52e-05,3]
[405951950,1771442610938,500.0,6.428e-05,2]
[405951951,1771442632161,935.64918516,6.502e-05,2]
[405951952,1771442632186,10000.01,6.502e-05,2]
[405951953,1771442632211,10000.01,6.502e-05,2]
[405951954,1771442632235,10000.01,6.502e-05,2]
[405951955,1771442632261,10000.01,6.502e-05,2]
[405951956,1771442632285,10000.01,6.502e-05,2]
[405951957,1771442632309,10000.01,6.502e-05,2]
[405951958,1771442694696,-2237.06578041,6.402e-05,2]
[405951961,1771442854067,158.87,6.4e-05,2]
[405951962,1771442888859,1600.0,5.765e-05,2]
[405951963,1771442938504,-160.0,6.402e-05,3]
[405951964,1771442938527,-483.0,6.402e-05,3]
[405951965,1771442938548,-150.0,6.402e-05,3]
[405951966,1771442938569,-407.0,6.417e-05,2]
[405951967,1771442954090,-459.0,6.402e-05,3]
[405951968,1771442954112,-5045.956548,6.417e-05,2]
[405951969,1771442973110,2075.24,5.996e-05,2]
[405951970,1771442989556,167.82,4.797e-05,2]
[405951971,1771442989792,167.82,5.996e-05,2]
[405951972,1771442995867,247.94,6.001e-05,2]
[405951973,1771442999948,1108.18843918,6.001e-05,2]
[405951974,1771442999971,391.81156082,6.001e-05,2]
[405951975,1771443004383,-150.0,6.402e-05,3]
[405951976,1771443005106,436.0,6.402e-05,3]
[405951977,1771443007616,167.0,6.402e-05,3]
[405951978,1771443011202,150.0,6.402e-05,3]
[405951987,1771443031969,-206.0,6.417e-05,2]
[405951988,1771443031979,-250.0,6.417e-05,2]
[405951989,1771443031988,-279.263452,6.417e-05,2]
[405951990,1771443031998,-468.1033,6.428e-05,2]
[405951991,1771443032008,-656.0,6.474e-05,2]
[405951992,1771443032019,-500.0,6.475e-05,2]
[405951993,1771443032030,-150.0,6.475e-05,2]
[405951994,1771443032040,-1600.0,6.486e-05,2]
[405951995,1771443032051,-212.0,6.491e-05,2]
[405951996,1771443032062,-1200.0,6.491e-05,2]
[405951997,1771443032072,-300.0,6.491e-05,2]
[405951998,1771443032083,-9832.78824314,6.492e-05,2]
[405951999,1771443032117,-663.84,6.492e-05,2]
[405952000,1771443032129,-13779.94323658,6.492e-05,2]
[405952001,1771443032139,-500.0,6.501e-05,2]
[405952002,1771443032150,-321.74431762,6.501e-05,2]
[405952003,1771443032160,-1429.94388951,6.502e-05,2]
[405952004,1771443032170,-150.0,6.528e-05,2]
[405952005,1771443032184,-3833.26257859,6.529e-05,2]
[405952006,1771443032194,-2221.57017581,6.529e-05,2]
[405952007,1771443032203,-2615.48610529,6.529e-05,2]
[405952008,1771443032214,-500.0,6.53e-05,2]
[405952009,1771443032226,-500.0,6.585e-05,2]
[405952010,1771443032236,-500.0,6.639e-05,2]
[405952011,1771443032246,-500.0,6.694e-05,2]
[405952012,1771443032256,-3400.0,6.7e-05,2]
[405952013,1771443032268,-1000.0,6.728e-05,2]
[405952014,1771443032277,-19203.77,6.73e-05,2]
[405952015,1771443032287,-500.0,6.749e-05,2]
[405952016,1771443032297,-6900.0,6.8e-05,2]
[405952017,1771443032308,-500.0,6.804e-05,2]
[405952018,1771443032318,-9999.99,6.821e-05,2]
[405952019,1771443032328,-999.99,6.821e-05,2]
[405952020,1771443032338,-150.99,6.821e-05,2]
[405952021,1771443032351,-499.99,6.821e-05,2]
[405952022,1771443032361,-5298.58,6.821e-05,2]
[405952023,1771443032371,-9999.99,6.821e-05,2]
[405952024,1771443032380,-4999.99,6.821e-05,2]
[405952025,1771443032390,-500.0,6.859e-05,2]
[405952026,1771443032400,-150.99,6.873e-05,2]
[405952027,1771443032411,-299.99,6.873e-05,2]
[405952028,1771443032420,-1847.75,6.873e-05,2]
[405952029,1771443032431,-5393.55,6.873e-05,2]
[405952030,1771443032440,-9999.99,6.873e-05,2]
[405952031,1771443032450,-9999.99,6.873e-05,2]
[405952032,1771443032460,-10300.0,6.9e-05,2]
[405952033,1771443032470,-269.87793082,6.913e-05,2]
[405952034,1771443032480,-1113.0,6.937e-05,2]
[405952035,1771443032491,-995.0,6.984e-05,2]
[405952036,1771443032500,-492.0,6.984e-05,2]
[405952037,1771443032514,-13800.0,7e-05,2]
[405952038,1771443032524,-250.0,7.03e-05,2]
[405952039,1771443032533,-193.0,7.059e-05,2]
[405952040,1771443032543,-250.0,7.059e-05,2]
[405952041,1771443032554,-250.0,7.059e-05,2]
[405952042,1771443032564,-6071.17,7.14e-05,2]
[405952043,1771443032574,-1680.0,7.14e-05,2]
[405952044,1771443032584,-370.0,7.14e-05,2]
[405952045,1771443032598,-255.0,7.181e-05,2]
[405952046,1771443032609,-167.82,7.195e-05,2]
[405952047,1771443032619,-1600.0,7.207e-05,2]
[405952048,1771443032629,-155.0,7.295e-05,2]
[405952049,1771443032639,-155.0,7.538e-05,2]
[405952050,1771443032649,-26801.25,7.562e-05,2]
[405952051,1771443032659,-588.46,7.59e-05,2]
[405952052,1771443032670,-600.0,7.674e-05,2]
[405952053,1771443032680,-600.0,7.674e-05,2]
[405952054,1771443032691,-178.57,7.674e-05,2]
[405952055,1771443032701,-351.16,7.702e-05,2]
[405952056,1771443032712,-155.0,7.781e-05,2]
[405952057,1771443032721,-151.0,7.825e-05,2]
[405952058,1771443032731,-99312.84,7.829e-05,2]
[405952059,1771443032740,-2351.0,7.854e-05,2]
[405952060,1771443032750,-433.0,7.899e-05,2]
[405952061,1771443032760,-1600.0,7.927e-05,2]
[405952062,1771443032769,-17200.0,8e-05,2]
[405952063,1771443032779,-155.0,8.025e-05,2]
[405952064,1771443032789,-20031.798547,8.178e-05,2]
[405952065,1771443032801,-238.46297995,8.196e-05,2]
[405952066,1771443032811,-500.0,8.219e-05,2]
[405952067,1771443032821,-150.0,8.219e-05,2]
[405952068,1771443032832,-500.0,8.219e-05,2]
[405952069,1771443032844,-150.0,8.219e-05,2]
[405952070,1771443032853,-500.0,8.219e-05,2]
[405952071,1771443032862,-500.0,8.219e-05,2]
[405952072,1771443032870,-500.0,8.219e-05,2]
[405952073,1771443032879,-150.0,8.219e-05,2]
[405952074,1771443032888,-500.0,8.219e-05,2]
[405952075,1771443032905,-500.0,8.219e-05,2]
[405952076,1771443032915,-500.0,8.219e-05,2]
[405952077,1771443032924,-150.0,8.219e-05,2]
[405952078,1771443032934,-500.0,8.219e-05,2]
[405952079,1771443032944,-500.0,8.219e-05,2]
[405952080,1771443032954,-150.0,8.219e-05,2]
[405952081,1771443032964,-500.0,8.219e-05,2]
[405952082,1771443032973,-1733.0,8.219e-05,2]
[405952083,1771443032983,-500.0,8.219e-05,2]
[405952084,1771443032993,-500.0,8.219e-05,2]
[405952085,1771443033003,-712.0,8.219e-05,2]
[405952086,1771443033013,-1526.0,8.219e-05,2]
[405952087,1771443033022,-500.0,8.219e-05,2]
[405952088,1771443033033,-500.0,8.219e-05,2]
[405952089,1771443033043,-1222.0,8.219e-05,2]
[405952090,1771443033053,-150.0,8.219e-05,2]
[405952091,1771443033063,-500.0,8.219e-05,2]
[405952092,1771443033073,-150.0,8.219e-05,2]
[405952093,1771443033082,-1313.0,8.219e-05,2]
[405952094,1771443033094,-840.99,8.219e-05,2]
[405952095,1771443033104,-150.0,8.219e-05,2]
[405952096,1771443033114,-200.0,8.219e-05,2]
[405952097,1771443033124,-500.0,8.219e-05,2]
[405952098,1771443033133,-727.0,8.219e-05,2]
[405952099,1771443033143,-500.0,8.219e-05,2]
[405952100,1771443033152,-500.0,8.219e-05,2]
[405952101,1771443033162,-1402.0,8.219e-05,2]
[405952102,1771443033171,-150.0,8.219e-05,2]
[405952103,1771443033182,-150.0,8.219e-05,2]
[405952104,1771443033194,-859.0,8.219e-05,2]
[405952105,1771443033204,-500.0,8.219e-05,2]
[405952106,1771443033213,-440.0,8.219e-05,2]
[405952107,1771443033224,-169.811901,8.219e-05,2]
[405952108,1771443033235,-550.13,8.219e-05,2]
[405952109,1771443033244,-500.0,8.219e-05,2]
[405952110,1771443033254,-21138.47,8.219e-05,2]
[405952111,1771443033264,-16768.55,8.219e-05,2]
[405952112,1771443033274,-1000.0,8.219e-05,2]
[405952113,1771443033284,-500.0,8.274e-05,2]
[405952114,1771443033294,-150.0,8.274e-05,2]
[405952115,1771443033304,-500.0,8.274e-05,2]
[405952116,1771443033314,-500.0,8.274e-05,2]
[405952117,1771443033324,-500.0,8.274e-05,2]
[405952118,1771443033334,-500.0,8.274e-05,2]
[405952119,1771443033344,-150.0,8.274e-05,2]
[405952120,1771443033353,-500.0,8.274e-05,2]
[405952121,1771443033364,-500.0,8.274e-05,2]
[405952122,1771443033373,-500.0,8.274e-05,2]
[405952123,1771443033383,-150.0,8.274e-05,2]
[405952124,1771443033392,-500.0,8.274e-05,2]
[405952125,1771443033402,-500.0,8.274e-05,2]
[405952126,1771443033411,-500.0,8.274e-05,2]
[405952127,1771443033419,-1733.0,8.274e-05,2]
[405952128,1771443033429,-500.0,8.274e-05,2]
[405952129,1771443033439,-500.0,8.274e-05,2]
[405952130,1771443033449,-712.0,8.274e-05,2]
[405952131,1771443033458,-1526.0,8.274e-05,2]
[405952132,1771443033468,-500.0,8.274e-05,2]
[405952133,1771443033478,-500.0,8.274e-05,2]
[405952134,1771443033488,-1222.0,8.274e-05,2]
[405952135,1771443033497,-150.0,8.274e-05,2]
[405952136,1771443033507,-500.0,8.274e-05,2]
[405952137,1771443033516,-150.0,8.274e-05,2]
[405952138,1771443033525,-1313.0,8.274e-05,2]
[405952139,1771443033535,-150.0,8.274e-05,2]
[405952140,1771443033544,-500.0,8.274e-05,2]
[405952141,1771443033554,-727.0,8.274e-05,2]
[405952142,1771443033564,-500.0,8.274e-05,2]
[405952143,1771443033573,-500.0,8.274e-05,2]
[405952144,1771443033582,-1402.0,8.274e-05,2]
[405952145,1771443033593,-859.0,8.274e-05,2]
[405952146,1771443033602,-500.0,8.274e-05,2]
[405952147,1771443033612,-440.0,8.274e-05,2]
[405952148,1771443033621,-500.0,8.329e-05,2]
[405952149,1771443033631,-150.0,8.329e-05,2]
[405952150,1771443033640,-500.0,8.329e-05,2]
[405952151,1771443033649,-500.0,8.329e-05,2]
[405952152,1771443033660,-500.0,8.329e-05,2]
[405952153,1771443033670,-500.0,8.329e-05,2]
[405952154,1771443033679,-150.0,8.329e-05,2]
[405952155,1771443033689,-500.0,8.329e-05,2]
[405952156,1771443033699,-500.0,8.329e-05,2]
[405952157,1771443033708,-271.26422158,8.329e-05,2]
[405952158,1771443033719,-150.0,8.329e-05,2]
[405952159,1771443033728,-500.0,8.329e-05,2]
[405952160,1771443033738,-500.0,8.329e-05,2]
[405952161,1771443033747,-500.0,8.329e-05,2]
[405952162,1771443033757,-1733.0,8.329e-05,2]
[405952163,1771443033766,-500.0,8.329e-05,2]
[405952164,1771443033776,-500.0,8.329e-05,2]
[405952165,1771443033785,-712.0,8.329e-05,2]
[405952166,1771443033795,-1526.0,8.329e-05,2]
[405952167,1771443033804,-500.0,8.329e-05,2]
[405952168,1771443033814,-649.58739776,8.329e-05,2]
[405952169,1771443033823,-1222.0,8.329e-05,2]
[405952170,1771443033833,-150.0,8.329e-05,2]
[405952171,1771443033844,-500.0,8.329e-05,2]
[405952172,1771443033853,-223.83847091,8.329e-05,2]
[405952173,1771443033863,-1313.0,8.329e-05,2]
[405952174,1771443033872,-150.0,8.329e-05,2]
[405952175,1771443033882,-500.0,8.329e-05,2]
[405952176,1771443033892,-727.0,8.329e-05,2]
[405952177,1771443033902,-500.0,8.329e-05,2]
[405952178,1771443033911,-500.0,8.329e-05,2]
[405952179,1771443033921,-1402.0,8.329e-05,2]
[405952180,1771443033931,-859.0,8.329e-05,2]
[405952181,1771443033940,-500.0,8.329e-05,2]
[405952182,1771443033950,-440.0,8.329e-05,2]
[405952183,1771443033960,-347.80828182,8.339e-05,2]
[405952184,1771443033969,-151.0,8.38e-05,2]
[405952185,1771443033978,-500.0,8.383e-05,2]
[405952186,1771443033988,-169.69787055,8.383e-05,2]
[405952187,1771443033998,-500.0,8.383e-05,2]
[405952188,1771443034009,-500.0,8.383e-05,2]
[405952189,1771443034019,-500.0,8.383e-05,2]
[405952190,1771443034028,-500.0,8.383e-05,2]
[405952191,1771443034038,-154.03933333,8.383e-05,2]
[405952192,1771443034047,-460.95998224,8.383e-05,2]
[405952193,1771443034057,-213.41826672,8.383e-05,2]
[405952194,1771443034067,-150.0,8.383e-05,2]
[405952195,1771443034076,-500.0,8.383e-05,2]
[405952196,1771443034087,-323.99208372,8.383e-05,2]
[405952197,1771443034098,-500.0,8.383e-05,2]
[405952198,1771443034108,-1733.0,8.383e-05,2]
[405952199,1771443034117,-500.0,8.383e-05,2]
[405952200,1771443034126,-500.0,8.383e-05,2]
[405952201,1771443034136,-712.0,8.383e-05,2]
[405952202,1771443034146,-1526.0,8.383e-05,2]
[405952203,1771443034156,-500.0,8.383e-05,2]
[405952204,1771443034166,-1222.0,8.383e-05,2]
[405952205,1771443034180,-150.0,8.383e-05,2]
[405952206,1771443034191,-500.0,8.383e-05,2]
[405952207,1771443034201,-1313.0,8.383e-05,2]
[405952208,1771443034212,-150.0,8.383e-05,2]
[405952209,1771443034223,-500.0,8.383e-05,2]
[405952210,1771443034232,-727.0,8.383e-05,2]
[405952211,1771443034242,-500.0,8.383e-05,2]
[405952212,1771443034251,-500.0,8.383e-05,2]
[405952213,1771443034263,-1402.0,8.383e-05,2]
[405952214,1771443034272,-859.0,8.383e-05,2]
[405952215,1771443034282,-500.0,8.383e-05,2]
[405952216,1771443034291,-440.0,8.383e-05,2]
[405952217,1771443034301,-500.0,8.438e-05,2]
[405952218,1771443034310,-500.0,8.438e-05,2]
[405952219,1771443034320,-500.0,8.438e-05,2]
[405952220,1771443034330,-500.0,8.438e-05,2]
[405952221,1771443034340,-500.0,8.438e-05,2]
[405952222,1771443034351,-157.09491501,8.438e-05,2]
[405952223,1771443034360,-500.0,8.438e-05,2]
[405952224,1771443034370,-500.0,8.438e-05,2]
[405952225,1771443034380,-1733.0,8.438e-05,2]
[405952226,1771443034389,-500.0,8.438e-05,2]
[405952227,1771443034399,-500.0,8.438e-05,2]
[405952228,1771443034408,-712.0,8.438e-05,2]
[405952229,1771443034418,-1526.0,8.438e-05,2]
[405952230,1771443034427,-500.0,8.438e-05,2]
[405952231,1771443034437,-1222.0,8.438e-05,2]
[405952232,1771443034447,-218.74954222,8.438e-05,2]
[405952233,1771443034457,-500.0,8.438e-05,2]
[405952234,1771443034468,-1313.0,8.438e-05,2]
[405952235,1771443034478,-168.83630396,8.438e-05,2]
[405952236,1771443034489,-500.0,8.438e-05,2]
[405952237,1771443034498,-727.0,8.438e-05,2]
[405952238,1771443034508,-500.0,8.438e-05,2]
[405952239,1771443034518,-500.0,8.438e-05,2]
[405952240,1771443034528,-1402.0,8.438e-05,2]
[405952241,1771443034538,-859.0,8.438e-05,2]
[405952242,1771443034547,-500.0,8.438e-05,2]
[405952243,1771443034557,-440.0,8.438e-05,2]
[405952244,1771443034566,-500.0,8.493e-05,2]
[405952245,1771443034576,-367.29110377,8.493e-05,2]
[405952246,1771443034586,-500.0,8.493e-05,2]
[405952247,1771443034596,-500.0,8.493e-05,2]
[405952248,1771443034606,-500.0,8.493e-05,2]
[405952249,1771443034615,-500.0,8.493e-05,2]
[405952250,1771443034624,-500.0,8.493e-05,2]
[405952251,1771443034635,-1733.0,8.493e-05,2]
[405952252,1771443034645,-500.0,8.493e-05,2]
[405952253,1771443034655,-500.0,8.493e-05,2]
[405952254,1771443034666,-712.0,8.493e-05,2]
[405952255,1771443034676,-1526.0,8.493e-05,2]
[405952256,1771443034685,-500.0,8.493e-05,2]
[405952257,1771443034695,-1222.0,8.493e-05,2]
[405952258,1771443034704,-500.0,8.493e-05,2]
[405952259,1771443034714,-1313.0,8.493e-05,2]
[405952260,1771443034724,-500.0,8.493e-05,2]
[405952261,1771443034734,-727.0,8.493e-05,2]
[405952262,1771443034743,-500.0,8.493e-05,2]
[405952263,1771443034753,-500.0,8.493e-05,2]
[405952264,1771443034763,-1402.0,8.493e-05,2]
[405952265,1771443034773,-859.0,8.493e-05,2]
[405952266,1771443034782,-440.0,8.493e-05,2]
[405952267,1771443034792,-500.0,8.493e-05,2]
[405952268,1771443034801,-840.99,8.493e-05,2]
[405952269,1771443034810,-500.0,8.493e-05,2]
[405952270,1771443034819,-500.0,8.548e-05,2]
[405952271,1771443034829,-500.0,8.548e-05,2]
[405952272,1771443034838,-498.35312128,8.548e-05,2]
[405952273,1771443034849,-500.0,8.548e-05,2]
[405952274,1771443034858,-500.0,8.548e-05,2]
[405952275,1771443035078,-500.0,8.548e-05,2]
[405952276,1771443035089,-500.0,8.548e-05,2]
[405952277,1771443035100,-1733.0,8.548e-05,2]
[405952278,1771443035109,-278.50492484,8.548e-05,2]
[405952279,1771443035118,-712.0,8.548e-05,2]
[405952280,1771443035128,-1526.0,8.548e-05,2]
[405952281,1771443035138,-500.0,8.548e-05,2]
[405952282,1771443035147,-1222.0,8.548e-05,2]
[405952283,1771443035156,-500.0,8.548e-05,2]
[405952284,1771443035165,-1313.0,8.548e-05,2]
[405952285,1771443035175,-500.0,8.548e-05,2]
[405952286,1771443035186,-727.0,8.548e-05,2]
[405952287,1771443035197,-500.0,8.548e-05,2]
[405952288,1771443035206,-500.0,8.548e-05,2]
[405952289,1771443035215,-1402.0,8.548e-05,2]
[405952290,1771443035226,-859.0,8.548e-05,2]
[405952291,1771443035235,-440.0,8.548e-05,2]
[405952292,1771443035245,-500.0,8.548e-05,2]
[405952293,1771443035256,-151.0,8.548e-05,2]
[405952294,1771443035265,-500.0,8.603e-05,2]
[405952295,1771443035274,-500.0,8.603e-05,2]
[405952296,1771443035283,-500.0,8.603e-05,2]
[405952297,1771443035292,-500.0,8.603e-05,2]
[405952298,1771443035301,-500.0,8.603e-05,2]
[405952299,1771443035311,-500.0,8.603e-05,2]
[405952300,1771443035321,-1733.0,8.603e-05,2]
[405952301,1771443035332,-712.0,8.603e-05,2]
[405952302,1771443035342,-1526.0,8.603e-05,2]
[405952303,1771443035351,-230.29085038,8.603e-05,2]
[405952304,1771443035360,-1222.0,8.603e-05,2]
[405952305,1771443035369,-500.0,8.603e-05,2]
[405952306,1771443035378,-1313.0,8.603e-05,2]
[405952307,1771443035388,-500.0,8.603e-05,2]
[405952308,1771443035398,-727.0,8.603e-05,2]
[405952309,1771443035408,-500.0,8.603e-05,2]
[405952310,1771443035417,-500.0,8.603e-05,2]
[405952311,1771443035426,-1402.0,8.603e-05,2]
[405952312,1771443035435,-859.0,8.603e-05,2]
[405952313,1771443035445,-500.0,8.603e-05,2]
[405952314,1771443035454,-440.0,8.603e-05,2]
[405952315,1771443035464,-3292.0,8.639e-05,2]
[405952316,1771443035474,-1600.0,8.648e-05,2]
[405952317,1771443035483,-237.38563793,8.657e-05,2]
[405952318,1771443035492,-500.0,8.657e-05,2]
[405952319,1771443035501,-500.0,8.657e-05,2]
[405952320,1771443035511,-500.0,8.657e-05,2]
[405952321,1771443035520,-500.0,8.657e-05,2]
[405952322,1771443035530,-363.1396322,8.657e-05,2]
[405952323,1771443035539,-1733.0,8.657e-05,2]
[405952324,1771443035548,-712.0,8.657e-05,2]
[405952325,1771443035558,-1526.0,8.657e-05,2]
[405952326,1771443035568,-1222.0,8.657e-05,2]
[405952327,1771443035578,-500.0,8.657e-05,2]
[405952328,1771443035587,-1313.0,8.657e-05,2]
[405952329,1771443035598,-568.74226857,8.657e-05,2]
[405952330,1771443035608,-727.0,8.657e-05,2]
[405952331,1771443035618,-500.0,8.657e-05,2]